{"text_format":"1","workbook":"xlsx","n_sheets":2,"sheets":["Sheet3","Sheet2"],"not_rendered":{"charts":0,"images":16,"macros":1,"external_links":0,"defined_names":0,"comments":0,"pivot_tables":0},"unopened":[],"bounds":{"document_bytes":16777216,"sheet_cells":100000,"rows_first":2000,"rows_last":500,"rows_between":2000,"halvings":0,"cell_chars":16384,"cell_head_chars":4096},"cells_cut":0,"cells_raw":0,"read":"whole","date_system":"1900"}

{"sheet":"Sheet3","index":0,"n_rows":34,"n_cols":11,"rows_kept":34,"cut":false,"hidden":false,"merged":[[4,4,4,7],[12,4,12,7],[4,10,4,12],[12,10,13,12],[21,0,23,15],[0,0,20,2],[0,3,0,13],[0,14,20,15]]}
[]
[]
[]
[]
[null,null,null,null,"الجهاز الأول",null,null,null,null,null,"الجهاز الثالث"]
[]
[]
[]
[]
[]
[]
[]
[null,null,null,null,"الجهاز الثاني",null,null,null,null,null,"الجهاز الرابع"]
[]
[]
[]
[]
[]
[]
[]
[]
[]
[]
[]
[]
[]
[]
[]
[]
[]
[]
[null,null,null,null,"فتح","اغلاق",null,"النوع"]
[]
[null,null,null,null,"الحساب"]

{"sheet":"Sheet2","index":1,"n_rows":1143,"n_cols":22,"rows_kept":1143,"cut":false,"hidden":false,"merged":[[2,17,2,21],[2,0,3,0],[2,1,3,1],[2,2,2,6],[2,7,2,11],[2,12,2,16]]}
[2.5,5]
[]
["م","التاريخ"]
[null,null,"من ","الي","النوع","المدة","المبلغ","من ","الي","النوع","المدة","المبلغ","من ","الي","النوع","المدة","المبلغ","من ","الي","النوع","المدة","المبلغ"]
[null,"2021-02-28",44253.108622685184,44253.117627314816,"زوجي",{"$f":"IF(D5=\"\",\"\",HOUR(D5-C5)*60+MINUTE(D5-C5))","v":12},{"$f":"IF(F5=\"\",\"\",IF(F5/15*$A$1,F5/15*$B$1))","v":4},44253.142546296294,44253.142824074072,"زوجي"]
[null,"2021-03-02",44256.512199074074,44256.502129629633,"مالتي",{"$f":"IF(D6=\"\",\"\",HOUR(D6-C6)*60+MINUTE(D6-C6))","v":{"$error":"#NUM!"}},{"$f":"IF(F6=\"\",\"\",IF(F6/15*$A$1,F6/15*$B$1))","v":{"$error":"#NUM!"}},44253.14403935185,44253.142893518518,"زوجي"]
[null,null,null,null,null,"",""]
[null,null,null,null,null,"",""]
[null,null,null,null,null,"",""]
[null,null,null,null,null,"",""]
[null,null,null,null,null,"",""]
[null,null,null,null,null,"",""]
[null,null,null,null,null,"",""]
[null,null,null,null,null,"",""]
[null,null,null,null,null,"",""]
[null,null,null,null,null,"",""]
[null,null,null,null,null,"",""]
[null,null,null,null,null,"",""]
[null,null,null,null,null,"",""]
[null,null,null,null,null,"",""]
[null,null,null,null,null,"",""]
[null,null,null,null,null,"",""]
[null,null,null,null,null,"",""]
[null,null,null,null,null,"",""]
[null,null,null,null,null,"",""]
[null,null,null,null,null,"",""]
[null,null,null,null,null,"",""]
[null,null,null,null,null,"",""]
[null,null,null,null,null,"",""]
[null,null,null,null,null,"",""]
[null,null,null,null,null,"",""]
[null,null,null,null,null,"",""]
[null,null,null,null,null,"",""]
[null,null,null,null,null,"",""]
[null,null,null,null,null,"",""]
[null,null,null,null,null,"",""]
[null,null,null,null,null,"",""]
[null,null,null,null,null,"",""]
[null,null,null,null,null,"",""]
[null,null,null,null,null,"",""]
[null,null,null,null,null,"",""]
[null,null,null,null,null,"",""]
[null,null,null,null,null,"",""]
[null,null,null,null,null,"",""]
[null,null,null,null,null,"",""]
[null,null,null,null,null,"",""]
[null,null,null,null,null,"",""]
[null,null,null,null,null,"",""]
[null,null,null,null,null,"",""]
[null,null,null,null,null,"",""]
[null,null,null,null,null,"",""]
[null,null,null,null,null,"",""]
[null,null,null,null,null,"",""]
[null,null,null,null,null,"",""]
[null,null,null,null,null,"",""]
[null,null,null,null,null,"",""]
[null,null,null,null,null,"",""]
[null,null,null,null,null,"",""]
[null,null,null,null,null,"",""]
[null,null,null,null,null,"",""]
[null,null,null,null,null,"",""]
[null,null,null,null,null,"",""]
[null,null,null,null,null,"",""]
[null,null,null,null,null,"",""]
[null,null,null,null,null,"",""]
[null,null,null,null,null,"",""]
[null,null,null,null,null,"",""]
[null,null,null,null,null,"",""]
[null,null,null,null,null,"",""]
[null,null,null,null,null,{"$f":"IF(D70=\"\",\"\",HOUR(D70-C70)*60+MINUTE(D70-C70))","v":""},{"$f":"IF(F70=\"\",\"\",IF(F70/15*$A$1,F70/15*$B$1))","v":""}]
[null,null,null,null,null,"",""]
[null,null,null,null,null,"",""]
[null,null,null,null,null,"",""]
[null,null,null,null,null,"",""]
[null,null,null,null,null,"",""]
[null,null,null,null,null,"",""]
[null,null,null,null,null,"",""]
[null,null,null,null,null,"",""]
[null,null,null,null,null,"",""]
[null,null,null,null,null,"",""]
[null,null,null,null,null,"",""]
[null,null,null,null,null,"",""]
[null,null,null,null,null,"",""]
[null,null,null,null,null,"",""]
[null,null,null,null,null,"",""]
[null,null,null,null,null,"",""]
[null,null,null,null,null,"",""]
[null,null,null,null,null,"",""]
[null,null,null,null,null,"",""]
[null,null,null,null,null,"",""]
[null,null,null,null,null,"",""]
[null,null,null,null,null,"",""]
[null,null,null,null,null,"",""]
[null,null,null,null,null,"",""]
[null,null,null,null,null,"",""]
[null,null,null,null,null,"",""]
[null,null,null,null,null,"",""]
[null,null,null,null,null,"",""]
[null,null,null,null,null,"",""]
[null,null,null,null,null,"",""]
[null,null,null,null,null,"",""]
[null,null,null,null,null,"",""]
[null,null,null,null,null,"",""]
[null,null,null,null,null,"",""]
[null,null,null,null,null,"",""]
[null,null,null,null,null,"",""]
[null,null,null,null,null,"",""]
[null,null,null,null,null,"",""]
[null,null,null,null,null,"",""]
[null,null,null,null,null,"",""]
[null,null,null,null,null,"",""]
[null,null,null,null,null,"",""]
[null,null,null,null,null,"",""]
[null,null,null,null,null,"",""]
[null,null,null,null,null,"",""]
[null,null,null,null,null,"",""]
[null,null,null,null,null,"",""]
[null,null,null,null,null,"",""]
[null,null,null,null,null,"",""]
[null,null,null,null,null,"",""]
[null,null,null,null,null,"",""]
[null,null,null,null,null,"",""]
[null,null,null,null,null,"",""]
[null,null,null,null,null,"",""]
[null,null,null,null,null,"",""]
[null,null,null,null,null,"",""]
[null,null,null,null,null,"",""]
[null,null,null,null,null,"",""]
[null,null,null,null,null,"",""]
[null,null,null,null,null,"",""]
[null,null,null,null,null,"",""]
[null,null,null,null,null,"",""]
[null,null,null,null,null,"",""]
[null,null,null,null,null,{"$f":"IF(D134=\"\",\"\",HOUR(D134-C134)*60+MINUTE(D134-C134))","v":""},{"$f":"IF(F134=\"\",\"\",IF(F134/15*$A$1,F134/15*$B$1))","v":""}]
[null,null,null,null,null,"",""]
[null,null,null,null,null,"",""]
[null,null,null,null,null,"",""]
[null,null,null,null,null,"",""]
[null,null,null,null,null,"",""]
[null,null,null,null,null,"",""]
[null,null,null,null,null,"",""]
[null,null,null,null,null,"",""]
[null,null,null,null,null,"",""]
[null,null,null,null,null,"",""]
[null,null,null,null,null,"",""]
[null,null,null,null,null,"",""]
[null,null,null,null,null,"",""]
[null,null,null,null,null,"",""]
[null,null,null,null,null,"",""]
[null,null,null,null,null,"",""]
[null,null,null,null,null,"",""]
[null,null,null,null,null,"",""]
[null,null,null,null,null,"",""]
[null,null,null,null,null,"",""]
[null,null,null,null,null,"",""]
[null,null,null,null,null,"",""]
[null,null,null,null,null,"",""]
[null,null,null,null,null,"",""]
[null,null,null,null,null,"",""]
[null,null,null,null,null,"",""]
[null,null,null,null,null,"",""]
[null,null,null,null,null,"",""]
[null,null,null,null,null,"",""]
[null,null,null,null,null,"",""]
[null,null,null,null,null,"",""]
[null,null,null,null,null,"",""]
[null,null,null,null,null,"",""]
[null,null,null,null,null,"",""]
[null,null,null,null,null,"",""]
[null,null,null,null,null,"",""]
[null,null,null,null,null,"",""]
[null,null,null,null,null,"",""]
[null,null,null,null,null,"",""]
[null,null,null,null,null,"",""]
[null,null,null,null,null,"",""]
[null,null,null,null,null,"",""]
[null,null,null,null,null,"",""]
[null,null,null,null,null,"",""]
[null,null,null,null,null,"",""]
[null,null,null,null,null,"",""]
[null,null,null,null,null,"",""]
[null,null,null,null,null,"",""]
[null,null,null,null,null,"",""]
[null,null,null,null,null,"",""]
[null,null,null,null,null,"",""]
[null,null,null,null,null,"",""]
[null,null,null,null,null,"",""]
[null,null,null,null,null,"",""]
[null,null,null,null,null,"",""]
[null,null,null,null,null,"",""]
[null,null,null,null,null,"",""]
[null,null,null,null,null,"",""]
[null,null,null,null,null,"",""]
[null,null,null,null,null,"",""]
[null,null,null,null,null,"",""]
[null,null,null,null,null,"",""]
[null,null,null,null,null,"",""]
[null,null,null,null,null,{"$f":"IF(D198=\"\",\"\",HOUR(D198-C198)*60+MINUTE(D198-C198))","v":""},{"$f":"IF(F198=\"\",\"\",IF(F198/15*$A$1,F198/15*$B$1))","v":""}]
[null,null,null,null,null,"",""]
[null,null,null,null,null,"",""]
[null,null,null,null,null,"",""]
[null,null,null,null,null,"",""]
[null,null,null,null,null,"",""]
[null,null,null,null,null,"",""]
[null,null,null,null,null,"",""]
[null,null,null,null,null,"",""]
[null,null,null,null,null,"",""]
[null,null,null,null,null,"",""]
[null,null,null,null,null,"",""]
[null,null,null,null,null,"",""]
[null,null,null,null,null,"",""]
[null,null,null,null,null,"",""]
[null,null,null,null,null,"",""]
[null,null,null,null,null,"",""]
[null,null,null,null,null,"",""]
[null,null,null,null,null,"",""]
[null,null,null,null,null,"",""]
[null,null,null,null,null,"",""]
[null,null,null,null,null,"",""]
[null,null,null,null,null,"",""]
[null,null,null,null,null,"",""]
[null,null,null,null,null,"",""]
[null,null,null,null,null,"",""]
[null,null,null,null,null,"",""]
[null,null,null,null,null,"",""]
[null,null,null,null,null,"",""]
[null,null,null,null,null,"",""]
[null,null,null,null,null,"",""]
[null,null,null,null,null,"",""]
[null,null,null,null,null,"",""]
[null,null,null,null,null,"",""]
[null,null,null,null,null,"",""]
[null,null,null,null,null,"",""]
[null,null,null,null,null,"",""]
[null,null,null,null,null,"",""]
[null,null,null,null,null,"",""]
[null,null,null,null,null,"",""]
[null,null,null,null,null,"",""]
[null,null,null,null,null,"",""]
[null,null,null,null,null,"",""]
[null,null,null,null,null,"",""]
[null,null,null,null,null,"",""]
[null,null,null,null,null,"",""]
[null,null,null,null,null,"",""]
[null,null,null,null,null,"",""]
[null,null,null,null,null,"",""]
[null,null,null,null,null,"",""]
[null,null,null,null,null,"",""]
[null,null,null,null,null,"",""]
[null,null,null,null,null,"",""]
[null,null,null,null,null,"",""]
[null,null,null,null,null,"",""]
[null,null,null,null,null,"",""]
[null,null,null,null,null,"",""]
[null,null,null,null,null,"",""]
[null,null,null,null,null,"",""]
[null,null,null,null,null,"",""]
[null,null,null,null,null,"",""]
[null,null,null,null,null,"",""]
[null,null,null,null,null,"",""]
[null,null,null,null,null,"",""]
[null,null,null,null,null,{"$f":"IF(D262=\"\",\"\",HOUR(D262-C262)*60+MINUTE(D262-C262))","v":""},{"$f":"IF(F262=\"\",\"\",IF(F262/15*$A$1,F262/15*$B$1))","v":""}]
[null,null,null,null,null,"",""]
[null,null,null,null,null,"",""]
[null,null,null,null,null,"",""]
[null,null,null,null,null,"",""]
[null,null,null,null,null,"",""]
[null,null,null,null,null,"",""]
[null,null,null,null,null,"",""]
[null,null,null,null,null,"",""]
[null,null,null,null,null,"",""]
[null,null,null,null,null,"",""]
[null,null,null,null,null,"",""]
[null,null,null,null,null,"",""]
[null,null,null,null,null,"",""]
[null,null,null,null,null,"",""]
[null,null,null,null,null,"",""]
[null,null,null,null,null,"",""]
[null,null,null,null,null,"",""]
[null,null,null,null,null,"",""]
[null,null,null,null,null,"",""]
[null,null,null,null,null,"",""]
[null,null,null,null,null,"",""]
[null,null,null,null,null,"",""]
[null,null,null,null,null,"",""]
[null,null,null,null,null,"",""]
[null,null,null,null,null,"",""]
[null,null,null,null,null,"",""]
[null,null,null,null,null,"",""]
[null,null,null,null,null,"",""]
[null,null,null,null,null,"",""]
[null,null,null,null,null,"",""]
[null,null,null,null,null,"",""]
[null,null,null,null,null,"",""]
[null,null,null,null,null,"",""]
[null,null,null,null,null,"",""]
[null,null,null,null,null,"",""]
[null,null,null,null,null,"",""]
[null,null,null,null,null,"",""]
[null,null,null,null,null,"",""]
[null,null,null,null,null,"",""]
[null,null,null,null,null,"",""]
[null,null,null,null,null,"",""]
[null,null,null,null,null,"",""]
[null,null,null,null,null,"",""]
[null,null,null,null,null,"",""]
[null,null,null,null,null,"",""]
[null,null,null,null,null,"",""]
[null,null,null,null,null,"",""]
[null,null,null,null,null,"",""]
[null,null,null,null,null,"",""]
[null,null,null,null,null,"",""]
[null,null,null,null,null,"",""]
[null,null,null,null,null,"",""]
[null,null,null,null,null,"",""]
[null,null,null,null,null,"",""]
[null,null,null,null,null,"",""]
[null,null,null,null,null,"",""]
[null,null,null,null,null,"",""]
[null,null,null,null,null,"",""]
[null,null,null,null,null,"",""]
[null,null,null,null,null,"",""]
[null,null,null,null,null,"",""]
[null,null,null,null,null,"",""]
[null,null,null,null,null,"",""]
[null,null,null,null,null,{"$f":"IF(D326=\"\",\"\",HOUR(D326-C326)*60+MINUTE(D326-C326))","v":""},{"$f":"IF(F326=\"\",\"\",IF(F326/15*$A$1,F326/15*$B$1))","v":""}]
[null,null,null,null,null,"",""]
[null,null,null,null,null,"",""]
[null,null,null,null,null,"",""]
[null,null,null,null,null,"",""]
[null,null,null,null,null,"",""]
[null,null,null,null,null,"",""]
[null,null,null,null,null,"",""]
[null,null,null,null,null,"",""]
[null,null,null,null,null,"",""]
[null,null,null,null,null,"",""]
[null,null,null,null,null,"",""]
[null,null,null,null,null,"",""]
[null,null,null,null,null,"",""]
[null,null,null,null,null,"",""]
[null,null,null,null,null,"",""]
[null,null,null,null,null,"",""]
[null,null,null,null,null,"",""]
[null,null,null,null,null,"",""]
[null,null,null,null,null,"",""]
[null,null,null,null,null,"",""]
[null,null,null,null,null,"",""]
[null,null,null,null,null,"",""]
[null,null,null,null,null,"",""]
[null,null,null,null,null,"",""]
[null,null,null,null,null,"",""]
[null,null,null,null,null,"",""]
[null,null,null,null,null,"",""]
[null,null,null,null,null,"",""]
[null,null,null,null,null,"",""]
[null,null,null,null,null,"",""]
[null,null,null,null,null,"",""]
[null,null,null,null,null,"",""]
[null,null,null,null,null,"",""]
[null,null,null,null,null,"",""]
[null,null,null,null,null,"",""]
[null,null,null,null,null,"",""]
[null,null,null,null,null,"",""]
[null,null,null,null,null,"",""]
[null,null,null,null,null,"",""]
[null,null,null,null,null,"",""]
[null,null,null,null,null,"",""]
[null,null,null,null,null,"",""]
[null,null,null,null,null,"",""]
[null,null,null,null,null,"",""]
[null,null,null,null,null,"",""]
[null,null,null,null,null,"",""]
[null,null,null,null,null,"",""]
[null,null,null,null,null,"",""]
[null,null,null,null,null,"",""]
[null,null,null,null,null,"",""]
[null,null,null,null,null,"",""]
[null,null,null,null,null,"",""]
[null,null,null,null,null,"",""]
[null,null,null,null,null,"",""]
[null,null,null,null,null,"",""]
[null,null,null,null,null,"",""]
[null,null,null,null,null,"",""]
[null,null,null,null,null,"",""]
[null,null,null,null,null,"",""]
[null,null,null,null,null,"",""]
[null,null,null,null,null,"",""]
[null,null,null,null,null,"",""]
[null,null,null,null,null,"",""]
[null,null,null,null,null,{"$f":"IF(D390=\"\",\"\",HOUR(D390-C390)*60+MINUTE(D390-C390))","v":""},{"$f":"IF(F390=\"\",\"\",IF(F390/15*$A$1,F390/15*$B$1))","v":""}]
[null,null,null,null,null,"",""]
[null,null,null,null,null,"",""]
[null,null,null,null,null,"",""]
[null,null,null,null,null,"",""]
[null,null,null,null,null,"",""]
[null,null,null,null,null,"",""]
[null,null,null,null,null,"",""]
[null,null,null,null,null,"",""]
[null,null,null,null,null,"",""]
[null,null,null,null,null,"",""]
[null,null,null,null,null,"",""]
[null,null,null,null,null,"",""]
[null,null,null,null,null,"",""]
[null,null,null,null,null,"",""]
[null,null,null,null,null,"",""]
[null,null,null,null,null,"",""]
[null,null,null,null,null,"",""]
[null,null,null,null,null,"",""]
[null,null,null,null,null,"",""]
[null,null,null,null,null,"",""]
[null,null,null,null,null,"",""]
[null,null,null,null,null,"",""]
[null,null,null,null,null,"",""]
[null,null,null,null,null,"",""]
[null,null,null,null,null,"",""]
[null,null,null,null,null,"",""]
[null,null,null,null,null,"",""]
[null,null,null,null,null,"",""]
[null,null,null,null,null,"",""]
[null,null,null,null,null,"",""]
[null,null,null,null,null,"",""]
[null,null,null,null,null,"",""]
[null,null,null,null,null,"",""]
[null,null,null,null,null,"",""]
[null,null,null,null,null,"",""]
[null,null,null,null,null,"",""]
[null,null,null,null,null,"",""]
[null,null,null,null,null,"",""]
[null,null,null,null,null,"",""]
[null,null,null,null,null,"",""]
[null,null,null,null,null,"",""]
[null,null,null,null,null,"",""]
[null,null,null,null,null,"",""]
[null,null,null,null,null,"",""]
[null,null,null,null,null,"",""]
[null,null,null,null,null,"",""]
[null,null,null,null,null,"",""]
[null,null,null,null,null,"",""]
[null,null,null,null,null,"",""]
[null,null,null,null,null,"",""]
[null,null,null,null,null,"",""]
[null,null,null,null,null,"",""]
[null,null,null,null,null,"",""]
[null,null,null,null,null,"",""]
[null,null,null,null,null,"",""]
[null,null,null,null,null,"",""]
[null,null,null,null,null,"",""]
[null,null,null,null,null,"",""]
[null,null,null,null,null,"",""]
[null,null,null,null,null,"",""]
[null,null,null,null,null,"",""]
[null,null,null,null,null,"",""]
[null,null,null,null,null,"",""]
[null,null,null,null,null,{"$f":"IF(D454=\"\",\"\",HOUR(D454-C454)*60+MINUTE(D454-C454))","v":""},{"$f":"IF(F454=\"\",\"\",IF(F454/15*$A$1,F454/15*$B$1))","v":""}]
[null,null,null,null,null,"",""]
[null,null,null,null,null,"",""]
[null,null,null,null,null,"",""]
[null,null,null,null,null,"",""]
[null,null,null,null,null,"",""]
[null,null,null,null,null,"",""]
[null,null,null,null,null,"",""]
[null,null,null,null,null,"",""]
[null,null,null,null,null,"",""]
[null,null,null,null,null,"",""]
[null,null,null,null,null,"",""]
[null,null,null,null,null,"",""]
[null,null,null,null,null,"",""]
[null,null,null,null,null,"",""]
[null,null,null,null,null,"",""]
[null,null,null,null,null,"",""]
[null,null,null,null,null,"",""]
[null,null,null,null,null,"",""]
[null,null,null,null,null,"",""]
[null,null,null,null,null,"",""]
[null,null,null,null,null,"",""]
[null,null,null,null,null,"",""]
[null,null,null,null,null,"",""]
[null,null,null,null,null,"",""]
[null,null,null,null,null,"",""]
[null,null,null,null,null,"",""]
[null,null,null,null,null,"",""]
[null,null,null,null,null,"",""]
[null,null,null,null,null,"",""]
[null,null,null,null,null,"",""]
[null,null,null,null,null,"",""]
[null,null,null,null,null,"",""]
[null,null,null,null,null,"",""]
[null,null,null,null,null,"",""]
[null,null,null,null,null,"",""]
[null,null,null,null,null,"",""]
[null,null,null,null,null,"",""]
[null,null,null,null,null,"",""]
[null,null,null,null,null,"",""]
[null,null,null,null,null,"",""]
[null,null,null,null,null,"",""]
[null,null,null,null,null,"",""]
[null,null,null,null,null,"",""]
[null,null,null,null,null,"",""]
[null,null,null,null,null,"",""]
[null,null,null,null,null,"",""]
[null,null,null,null,null,"",""]
[null,null,null,null,null,"",""]
[null,null,null,null,null,"",""]
[null,null,null,null,null,"",""]
[null,null,null,null,null,"",""]
[null,null,null,null,null,"",""]
[null,null,null,null,null,"",""]
[null,null,null,null,null,"",""]
[null,null,null,null,null,"",""]
[null,null,null,null,null,"",""]
[null,null,null,null,null,"",""]
[null,null,null,null,null,"",""]
[null,null,null,null,null,"",""]
[null,null,null,null,null,"",""]
[null,null,null,null,null,"",""]
[null,null,null,null,null,"",""]
[null,null,null,null,null,"",""]
[null,null,null,null,null,{"$f":"IF(D518=\"\",\"\",HOUR(D518-C518)*60+MINUTE(D518-C518))","v":""},{"$f":"IF(F518=\"\",\"\",IF(F518/15*$A$1,F518/15*$B$1))","v":""}]
[null,null,null,null,null,"",""]
[null,null,null,null,null,"",""]
[null,null,null,null,null,"",""]
[null,null,null,null,null,"",""]
[null,null,null,null,null,"",""]
[null,null,null,null,null,"",""]
[null,null,null,null,null,"",""]
[null,null,null,null,null,"",""]
[null,null,null,null,null,"",""]
[null,null,null,null,null,"",""]
[null,null,null,null,null,"",""]
[null,null,null,null,null,"",""]
[null,null,null,null,null,"",""]
[null,null,null,null,null,"",""]
[null,null,null,null,null,"",""]
[null,null,null,null,null,"",""]
[null,null,null,null,null,"",""]
[null,null,null,null,null,"",""]
[null,null,null,null,null,"",""]
[null,null,null,null,null,"",""]
[null,null,null,null,null,"",""]
[null,null,null,null,null,"",""]
[null,null,null,null,null,"",""]
[null,null,null,null,null,"",""]
[null,null,null,null,null,"",""]
[null,null,null,null,null,"",""]
[null,null,null,null,null,"",""]
[null,null,null,null,null,"",""]
[null,null,null,null,null,"",""]
[null,null,null,null,null,"",""]
[null,null,null,null,null,"",""]
[null,null,null,null,null,"",""]
[null,null,null,null,null,"",""]
[null,null,null,null,null,"",""]
[null,null,null,null,null,"",""]
[null,null,null,null,null,"",""]
[null,null,null,null,null,"",""]
[null,null,null,null,null,"",""]
[null,null,null,null,null,"",""]
[null,null,null,null,null,"",""]
[null,null,null,null,null,"",""]
[null,null,null,null,null,"",""]
[null,null,null,null,null,"",""]
[null,null,null,null,null,"",""]
[null,null,null,null,null,"",""]
[null,null,null,null,null,"",""]
[null,null,null,null,null,"",""]
[null,null,null,null,null,"",""]
[null,null,null,null,null,"",""]
[null,null,null,null,null,"",""]
[null,null,null,null,null,"",""]
[null,null,null,null,null,"",""]
[null,null,null,null,null,"",""]
[null,null,null,null,null,"",""]
[null,null,null,null,null,"",""]
[null,null,null,null,null,"",""]
[null,null,null,null,null,"",""]
[null,null,null,null,null,"",""]
[null,null,null,null,null,"",""]
[null,null,null,null,null,"",""]
[null,null,null,null,null,"",""]
[null,null,null,null,null,"",""]
[null,null,null,null,null,"",""]
[null,null,null,null,null,{"$f":"IF(D582=\"\",\"\",HOUR(D582-C582)*60+MINUTE(D582-C582))","v":""},{"$f":"IF(F582=\"\",\"\",IF(F582/15*$A$1,F582/15*$B$1))","v":""}]
[null,null,null,null,null,"",""]
[null,null,null,null,null,"",""]
[null,null,null,null,null,"",""]
[null,null,null,null,null,"",""]
[null,null,null,null,null,"",""]
[null,null,null,null,null,"",""]
[null,null,null,null,null,"",""]
[null,null,null,null,null,"",""]
[null,null,null,null,null,"",""]
[null,null,null,null,null,"",""]
[null,null,null,null,null,"",""]
[null,null,null,null,null,"",""]
[null,null,null,null,null,"",""]
[null,null,null,null,null,"",""]
[null,null,null,null,null,"",""]
[null,null,null,null,null,"",""]
[null,null,null,null,null,"",""]
[null,null,null,null,null,"",""]
[null,null,null,null,null,"",""]
[null,null,null,null,null,"",""]
[null,null,null,null,null,"",""]
[null,null,null,null,null,"",""]
[null,null,null,null,null,"",""]
[null,null,null,null,null,"",""]
[null,null,null,null,null,"",""]
[null,null,null,null,null,"",""]
[null,null,null,null,null,"",""]
[null,null,null,null,null,"",""]
[null,null,null,null,null,"",""]
[null,null,null,null,null,"",""]
[null,null,null,null,null,"",""]
[null,null,null,null,null,"",""]
[null,null,null,null,null,"",""]
[null,null,null,null,null,"",""]
[null,null,null,null,null,"",""]
[null,null,null,null,null,"",""]
[null,null,null,null,null,"",""]
[null,null,null,null,null,"",""]
[null,null,null,null,null,"",""]
[null,null,null,null,null,"",""]
[null,null,null,null,null,"",""]
[null,null,null,null,null,"",""]
[null,null,null,null,null,"",""]
[null,null,null,null,null,"",""]
[null,null,null,null,null,"",""]
[null,null,null,null,null,"",""]
[null,null,null,null,null,"",""]
[null,null,null,null,null,"",""]
[null,null,null,null,null,"",""]
[null,null,null,null,null,"",""]
[null,null,null,null,null,"",""]
[null,null,null,null,null,"",""]
[null,null,null,null,null,"",""]
[null,null,null,null,null,"",""]
[null,null,null,null,null,"",""]
[null,null,null,null,null,"",""]
[null,null,null,null,null,"",""]
[null,null,null,null,null,"",""]
[null,null,null,null,null,"",""]
[null,null,null,null,null,"",""]
[null,null,null,null,null,"",""]
[null,null,null,null,null,"",""]
[null,null,null,null,null,"",""]
[null,null,null,null,null,{"$f":"IF(D646=\"\",\"\",HOUR(D646-C646)*60+MINUTE(D646-C646))","v":""},{"$f":"IF(F646=\"\",\"\",IF(F646/15*$A$1,F646/15*$B$1))","v":""}]
[null,null,null,null,null,"",""]
[null,null,null,null,null,"",""]
[null,null,null,null,null,"",""]
[null,null,null,null,null,"",""]
[null,null,null,null,null,"",""]
[null,null,null,null,null,"",""]
[null,null,null,null,null,"",""]
[null,null,null,null,null,"",""]
[null,null,null,null,null,"",""]
[null,null,null,null,null,"",""]
[null,null,null,null,null,"",""]
[null,null,null,null,null,"",""]
[null,null,null,null,null,"",""]
[null,null,null,null,null,"",""]
[null,null,null,null,null,"",""]
[null,null,null,null,null,"",""]
[null,null,null,null,null,"",""]
[null,null,null,null,null,"",""]
[null,null,null,null,null,"",""]
[null,null,null,null,null,"",""]
[null,null,null,null,null,"",""]
[null,null,null,null,null,"",""]
[null,null,null,null,null,"",""]
[null,null,null,null,null,"",""]
[null,null,null,null,null,"",""]
[null,null,null,null,null,"",""]
[null,null,null,null,null,"",""]
[null,null,null,null,null,"",""]
[null,null,null,null,null,"",""]
[null,null,null,null,null,"",""]
[null,null,null,null,null,"",""]
[null,null,null,null,null,"",""]
[null,null,null,null,null,"",""]
[null,null,null,null,null,"",""]
[null,null,null,null,null,"",""]
[null,null,null,null,null,"",""]
[null,null,null,null,null,"",""]
[null,null,null,null,null,"",""]
[null,null,null,null,null,"",""]
[null,null,null,null,null,"",""]
[null,null,null,null,null,"",""]
[null,null,null,null,null,"",""]
[null,null,null,null,null,"",""]
[null,null,null,null,null,"",""]
[null,null,null,null,null,"",""]
[null,null,null,null,null,"",""]
[null,null,null,null,null,"",""]
[null,null,null,null,null,"",""]
[null,null,null,null,null,"",""]
[null,null,null,null,null,"",""]
[null,null,null,null,null,"",""]
[null,null,null,null,null,"",""]
[null,null,null,null,null,"",""]
[null,null,null,null,null,"",""]
[null,null,null,null,null,"",""]
[null,null,null,null,null,"",""]
[null,null,null,null,null,"",""]
[null,null,null,null,null,"",""]
[null,null,null,null,null,"",""]
[null,null,null,null,null,"",""]
[null,null,null,null,null,"",""]
[null,null,null,null,null,"",""]
[null,null,null,null,null,"",""]
[null,null,null,null,null,{"$f":"IF(D710=\"\",\"\",HOUR(D710-C710)*60+MINUTE(D710-C710))","v":""},{"$f":"IF(F710=\"\",\"\",IF(F710/15*$A$1,F710/15*$B$1))","v":""}]
[null,null,null,null,null,"",""]
[null,null,null,null,null,"",""]
[null,null,null,null,null,"",""]
[null,null,null,null,null,"",""]
[null,null,null,null,null,"",""]
[null,null,null,null,null,"",""]
[null,null,null,null,null,"",""]
[null,null,null,null,null,"",""]
[null,null,null,null,null,"",""]
[null,null,null,null,null,"",""]
[null,null,null,null,null,"",""]
[null,null,null,null,null,"",""]
[null,null,null,null,null,"",""]
[null,null,null,null,null,"",""]
[null,null,null,null,null,"",""]
[null,null,null,null,null,"",""]
[null,null,null,null,null,"",""]
[null,null,null,null,null,"",""]
[null,null,null,null,null,"",""]
[null,null,null,null,null,"",""]
[null,null,null,null,null,"",""]
[null,null,null,null,null,"",""]
[null,null,null,null,null,"",""]
[null,null,null,null,null,"",""]
[null,null,null,null,null,"",""]
[null,null,null,null,null,"",""]
[null,null,null,null,null,"",""]
[null,null,null,null,null,"",""]
[null,null,null,null,null,"",""]
[null,null,null,null,null,"",""]
[null,null,null,null,null,"",""]
[null,null,null,null,null,"",""]
[null,null,null,null,null,"",""]
[null,null,null,null,null,"",""]
[null,null,null,null,null,"",""]
[null,null,null,null,null,"",""]
[null,null,null,null,null,"",""]
[null,null,null,null,null,"",""]
[null,null,null,null,null,"",""]
[null,null,null,null,null,"",""]
[null,null,null,null,null,"",""]
[null,null,null,null,null,"",""]
[null,null,null,null,null,"",""]
[null,null,null,null,null,"",""]
[null,null,null,null,null,"",""]
[null,null,null,null,null,"",""]
[null,null,null,null,null,"",""]
[null,null,null,null,null,"",""]
[null,null,null,null,null,"",""]
[null,null,null,null,null,"",""]
[null,null,null,null,null,"",""]
[null,null,null,null,null,"",""]
[null,null,null,null,null,"",""]
[null,null,null,null,null,"",""]
[null,null,null,null,null,"",""]
[null,null,null,null,null,"",""]
[null,null,null,null,null,"",""]
[null,null,null,null,null,"",""]
[null,null,null,null,null,"",""]
[null,null,null,null,null,"",""]
[null,null,null,null,null,"",""]
[null,null,null,null,null,"",""]
[null,null,null,null,null,"",""]
[null,null,null,null,null,{"$f":"IF(D774=\"\",\"\",HOUR(D774-C774)*60+MINUTE(D774-C774))","v":""},{"$f":"IF(F774=\"\",\"\",IF(F774/15*$A$1,F774/15*$B$1))","v":""}]
[null,null,null,null,null,"",""]
[null,null,null,null,null,"",""]
[null,null,null,null,null,"",""]
[null,null,null,null,null,"",""]
[null,null,null,null,null,"",""]
[null,null,null,null,null,"",""]
[null,null,null,null,null,"",""]
[null,null,null,null,null,"",""]
[null,null,null,null,null,"",""]
[null,null,null,null,null,"",""]
[null,null,null,null,null,"",""]
[null,null,null,null,null,"",""]
[null,null,null,null,null,"",""]
[null,null,null,null,null,"",""]
[null,null,null,null,null,"",""]
[null,null,null,null,null,"",""]
[null,null,null,null,null,"",""]
[null,null,null,null,null,"",""]
[null,null,null,null,null,"",""]
[null,null,null,null,null,"",""]
[null,null,null,null,null,"",""]
[null,null,null,null,null,"",""]
[null,null,null,null,null,"",""]
[null,null,null,null,null,"",""]
[null,null,null,null,null,"",""]
[null,null,null,null,null,"",""]
[null,null,null,null,null,"",""]
[null,null,null,null,null,"",""]
[null,null,null,null,null,"",""]
[null,null,null,null,null,"",""]
[null,null,null,null,null,"",""]
[null,null,null,null,null,"",""]
[null,null,null,null,null,"",""]
[null,null,null,null,null,"",""]
[null,null,null,null,null,"",""]
[null,null,null,null,null,"",""]
[null,null,null,null,null,"",""]
[null,null,null,null,null,"",""]
[null,null,null,null,null,"",""]
[null,null,null,null,null,"",""]
[null,null,null,null,null,"",""]
[null,null,null,null,null,"",""]
[null,null,null,null,null,"",""]
[null,null,null,null,null,"",""]
[null,null,null,null,null,"",""]
[null,null,null,null,null,"",""]
[null,null,null,null,null,"",""]
[null,null,null,null,null,"",""]
[null,null,null,null,null,"",""]
[null,null,null,null,null,"",""]
[null,null,null,null,null,"",""]
[null,null,null,null,null,"",""]
[null,null,null,null,null,"",""]
[null,null,null,null,null,"",""]
[null,null,null,null,null,"",""]
[null,null,null,null,null,"",""]
[null,null,null,null,null,"",""]
[null,null,null,null,null,"",""]
[null,null,null,null,null,"",""]
[null,null,null,null,null,"",""]
[null,null,null,null,null,"",""]
[null,null,null,null,null,"",""]
[null,null,null,null,null,"",""]
[null,null,null,null,null,{"$f":"IF(D838=\"\",\"\",HOUR(D838-C838)*60+MINUTE(D838-C838))","v":""},{"$f":"IF(F838=\"\",\"\",IF(F838/15*$A$1,F838/15*$B$1))","v":""}]
[null,null,null,null,null,"",""]
[null,null,null,null,null,"",""]
[null,null,null,null,null,"",""]
[null,null,null,null,null,"",""]
[null,null,null,null,null,"",""]
[null,null,null,null,null,"",""]
[null,null,null,null,null,"",""]
[null,null,null,null,null,"",""]
[null,null,null,null,null,"",""]
[null,null,null,null,null,"",""]
[null,null,null,null,null,"",""]
[null,null,null,null,null,"",""]
[null,null,null,null,null,"",""]
[null,null,null,null,null,"",""]
[null,null,null,null,null,"",""]
[null,null,null,null,null,"",""]
[null,null,null,null,null,"",""]
[null,null,null,null,null,"",""]
[null,null,null,null,null,"",""]
[null,null,null,null,null,"",""]
[null,null,null,null,null,"",""]
[null,null,null,null,null,"",""]
[null,null,null,null,null,"",""]
[null,null,null,null,null,"",""]
[null,null,null,null,null,"",""]
[null,null,null,null,null,"",""]
[null,null,null,null,null,"",""]
[null,null,null,null,null,"",""]
[null,null,null,null,null,"",""]
[null,null,null,null,null,"",""]
[null,null,null,null,null,"",""]
[null,null,null,null,null,"",""]
[null,null,null,null,null,"",""]
[null,null,null,null,null,"",""]
[null,null,null,null,null,"",""]
[null,null,null,null,null,"",""]
[null,null,null,null,null,"",""]
[null,null,null,null,null,"",""]
[null,null,null,null,null,"",""]
[null,null,null,null,null,"",""]
[null,null,null,null,null,"",""]
[null,null,null,null,null,"",""]
[null,null,null,null,null,"",""]
[null,null,null,null,null,"",""]
[null,null,null,null,null,"",""]
[null,null,null,null,null,"",""]
[null,null,null,null,null,"",""]
[null,null,null,null,null,"",""]
[null,null,null,null,null,"",""]
[null,null,null,null,null,"",""]
[null,null,null,null,null,"",""]
[null,null,null,null,null,"",""]
[null,null,null,null,null,"",""]
[null,null,null,null,null,"",""]
[null,null,null,null,null,"",""]
[null,null,null,null,null,"",""]
[null,null,null,null,null,"",""]
[null,null,null,null,null,"",""]
[null,null,null,null,null,"",""]
[null,null,null,null,null,"",""]
[null,null,null,null,null,"",""]
[null,null,null,null,null,"",""]
[null,null,null,null,null,"",""]
[null,null,null,null,null,{"$f":"IF(D902=\"\",\"\",HOUR(D902-C902)*60+MINUTE(D902-C902))","v":""},{"$f":"IF(F902=\"\",\"\",IF(F902/15*$A$1,F902/15*$B$1))","v":""}]
[null,null,null,null,null,"",""]
[null,null,null,null,null,"",""]
[null,null,null,null,null,"",""]
[null,null,null,null,null,"",""]
[null,null,null,null,null,"",""]
[null,null,null,null,null,"",""]
[null,null,null,null,null,"",""]
[null,null,null,null,null,"",""]
[null,null,null,null,null,"",""]
[null,null,null,null,null,"",""]
[null,null,null,null,null,"",""]
[null,null,null,null,null,"",""]
[null,null,null,null,null,"",""]
[null,null,null,null,null,"",""]
[null,null,null,null,null,"",""]
[null,null,null,null,null,"",""]
[null,null,null,null,null,"",""]
[null,null,null,null,null,"",""]
[null,null,null,null,null,"",""]
[null,null,null,null,null,"",""]
[null,null,null,null,null,"",""]
[null,null,null,null,null,"",""]
[null,null,null,null,null,"",""]
[null,null,null,null,null,"",""]
[null,null,null,null,null,"",""]
[null,null,null,null,null,"",""]
[null,null,null,null,null,"",""]
[null,null,null,null,null,"",""]
[null,null,null,null,null,"",""]
[null,null,null,null,null,"",""]
[null,null,null,null,null,"",""]
[null,null,null,null,null,"",""]
[null,null,null,null,null,"",""]
[null,null,null,null,null,"",""]
[null,null,null,null,null,"",""]
[null,null,null,null,null,"",""]
[null,null,null,null,null,"",""]
[null,null,null,null,null,"",""]
[null,null,null,null,null,"",""]
[null,null,null,null,null,"",""]
[null,null,null,null,null,"",""]
[null,null,null,null,null,"",""]
[null,null,null,null,null,"",""]
[null,null,null,null,null,"",""]
[null,null,null,null,null,"",""]
[null,null,null,null,null,"",""]
[null,null,null,null,null,"",""]
[null,null,null,null,null,"",""]
[null,null,null,null,null,"",""]
[null,null,null,null,null,"",""]
[null,null,null,null,null,"",""]
[null,null,null,null,null,"",""]
[null,null,null,null,null,"",""]
[null,null,null,null,null,"",""]
[null,null,null,null,null,"",""]
[null,null,null,null,null,"",""]
[null,null,null,null,null,"",""]
[null,null,null,null,null,"",""]
[null,null,null,null,null,"",""]
[null,null,null,null,null,"",""]
[null,null,null,null,null,"",""]
[null,null,null,null,null,"",""]
[null,null,null,null,null,"",""]
[null,null,null,null,null,{"$f":"IF(D966=\"\",\"\",HOUR(D966-C966)*60+MINUTE(D966-C966))","v":""},{"$f":"IF(F966=\"\",\"\",IF(F966/15*$A$1,F966/15*$B$1))","v":""}]
[null,null,null,null,null,"",""]
[null,null,null,null,null,"",""]
[null,null,null,null,null,"",""]
[null,null,null,null,null,"",""]
[null,null,null,null,null,"",""]
[null,null,null,null,null,"",""]
[null,null,null,null,null,"",""]
[null,null,null,null,null,"",""]
[null,null,null,null,null,"",""]
[null,null,null,null,null,"",""]
[null,null,null,null,null,"",""]
[null,null,null,null,null,"",""]
[null,null,null,null,null,"",""]
[null,null,null,null,null,"",""]
[null,null,null,null,null,"",""]
[null,null,null,null,null,"",""]
[null,null,null,null,null,"",""]
[null,null,null,null,null,"",""]
[null,null,null,null,null,"",""]
[null,null,null,null,null,"",""]
[null,null,null,null,null,"",""]
[null,null,null,null,null,"",""]
[null,null,null,null,null,"",""]
[null,null,null,null,null,"",""]
[null,null,null,null,null,"",""]
[null,null,null,null,null,"",""]
[null,null,null,null,null,"",""]
[null,null,null,null,null,"",""]
[null,null,null,null,null,"",""]
[null,null,null,null,null,"",""]
[null,null,null,null,null,"",""]
[null,null,null,null,null,"",""]
[null,null,null,null,null,"",""]
[null,null,null,null,null,"",""]
[null,null,null,null,null,"",""]
[null,null,null,null,null,"",""]
[null,null,null,null,null,"",""]
[null,null,null,null,null,"",""]
[null,null,null,null,null,"",""]
[null,null,null,null,null,"",""]
[null,null,null,null,null,"",""]
[null,null,null,null,null,"",""]
[null,null,null,null,null,"",""]
[null,null,null,null,null,"",""]
[null,null,null,null,null,"",""]
[null,null,null,null,null,"",""]
[null,null,null,null,null,"",""]
[null,null,null,null,null,"",""]
[null,null,null,null,null,"",""]
[null,null,null,null,null,"",""]
[null,null,null,null,null,"",""]
[null,null,null,null,null,"",""]
[null,null,null,null,null,"",""]
[null,null,null,null,null,"",""]
[null,null,null,null,null,"",""]
[null,null,null,null,null,"",""]
[null,null,null,null,null,"",""]
[null,null,null,null,null,"",""]
[null,null,null,null,null,"",""]
[null,null,null,null,null,"",""]
[null,null,null,null,null,"",""]
[null,null,null,null,null,"",""]
[null,null,null,null,null,"",""]
[null,null,null,null,null,{"$f":"IF(D1030=\"\",\"\",HOUR(D1030-C1030)*60+MINUTE(D1030-C1030))","v":""},{"$f":"IF(F1030=\"\",\"\",IF(F1030/15*$A$1,F1030/15*$B$1))","v":""}]
[null,null,null,null,null,"",""]
[null,null,null,null,null,"",""]
[null,null,null,null,null,"",""]
[null,null,null,null,null,"",""]
[null,null,null,null,null,"",""]
[null,null,null,null,null,"",""]
[null,null,null,null,null,"",""]
[null,null,null,null,null,"",""]
[null,null,null,null,null,"",""]
[null,null,null,null,null,"",""]
[null,null,null,null,null,"",""]
[null,null,null,null,null,"",""]
[null,null,null,null,null,"",""]
[null,null,null,null,null,"",""]
[null,null,null,null,null,"",""]
[null,null,null,null,null,"",""]
[null,null,null,null,null,"",""]
[null,null,null,null,null,"",""]
[null,null,null,null,null,"",""]
[null,null,null,null,null,"",""]
[null,null,null,null,null,"",""]
[null,null,null,null,null,"",""]
[null,null,null,null,null,"",""]
[null,null,null,null,null,"",""]
[null,null,null,null,null,"",""]
[null,null,null,null,null,"",""]
[null,null,null,null,null,"",""]
[null,null,null,null,null,"",""]
[null,null,null,null,null,"",""]
[null,null,null,null,null,"",""]
[null,null,null,null,null,"",""]
[null,null,null,null,null,"",""]
[null,null,null,null,null,"",""]
[null,null,null,null,null,"",""]
[null,null,null,null,null,"",""]
[null,null,null,null,null,"",""]
[null,null,null,null,null,"",""]
[null,null,null,null,null,"",""]
[null,null,null,null,null,"",""]
[null,null,null,null,null,"",""]
[null,null,null,null,null,"",""]
[null,null,null,null,null,"",""]
[null,null,null,null,null,"",""]
[null,null,null,null,null,"",""]
[null,null,null,null,null,"",""]
[null,null,null,null,null,"",""]
[null,null,null,null,null,"",""]
[null,null,null,null,null,"",""]
[null,null,null,null,null,"",""]
[null,null,null,null,null,"",""]
[null,null,null,null,null,"",""]
[null,null,null,null,null,"",""]
[null,null,null,null,null,"",""]
[null,null,null,null,null,"",""]
[null,null,null,null,null,"",""]
[null,null,null,null,null,"",""]
[null,null,null,null,null,"",""]
[null,null,null,null,null,"",""]
[null,null,null,null,null,"",""]
[null,null,null,null,null,"",""]
[null,null,null,null,null,"",""]
[null,null,null,null,null,"",""]
[null,null,null,null,null,"",""]
[null,null,null,null,null,{"$f":"IF(D1094=\"\",\"\",HOUR(D1094-C1094)*60+MINUTE(D1094-C1094))","v":""},{"$f":"IF(F1094=\"\",\"\",IF(F1094/15*$A$1,F1094/15*$B$1))","v":""}]
[null,null,null,null,null,"",""]
[null,null,null,null,null,"",""]
[null,null,null,null,null,"",""]
[null,null,null,null,null,"",""]
[null,null,null,null,null,"",""]
[null,null,null,null,null,"",""]
[null,null,null,null,null,"",""]
[null,null,null,null,null,"",""]
[null,null,null,null,null,"",""]
[null,null,null,null,null,"",""]
[null,null,null,null,null,"",""]
[null,null,null,null,null,"",""]
[null,null,null,null,null,"",""]
[null,null,null,null,null,"",""]
[null,null,null,null,null,"",""]
[null,null,null,null,null,"",""]
[null,null,null,null,null,"",""]
[null,null,null,null,null,"",""]
[null,null,null,null,null,"",""]
[null,null,null,null,null,"",""]
[null,null,null,null,null,"",""]
[null,null,null,null,null,"",""]
[null,null,null,null,null,"",""]
[null,null,null,null,null,"",""]
[null,null,null,null,null,"",""]
[null,null,null,null,null,"",""]
[null,null,null,null,null,"",""]
[null,null,null,null,null,"",""]
[null,null,null,null,null,"",""]
[null,null,null,null,null,"",""]
[null,null,null,null,null,"",""]
[null,null,null,null,null,null,""]
[null,null,null,null,null,null,""]
[null,null,null,null,null,null,""]
[null,null,null,null,null,null,""]
[null,null,null,null,null,null,""]
[null,null,null,null,null,null,""]
[null,null,null,null,null,null,""]
[null,null,null,null,null,null,""]
[null,null,null,null,null,null,""]
[null,null,null,null,null,null,""]
[null,null,null,null,null,null,""]
[null,null,null,null,null,null,""]
[null,null,null,null,null,null,""]
[null,null,null,null,null,null,""]
[null,null,null,null,null,null,""]
[null,null,null,null,null,null,""]
[null,null,null,null,null,null,""]
[null,null,null,null,null,null,""]